bitfinex-derivatives/quotes_BTCF0:USTF0_20250121
["timestamp","ask_amount","ask_price","bid_price","bid_amount"]
[1737427518974,0.03926,102010.0,102000.0,0.1]
[1737427519880,0.03934815,102010.0,102000.0,0.1]
[1737427520383,0.12221511,102010.0,102000.0,0.1]
[1737427521272,0.039268,101990.0,101980.0,0.3608]
[1737427521472,0.3608,102000.0,101980.0,0.44366696]
[1737427521677,0.03934915,102010.0,101990.0,0.48293396]
[1737427521872,0.08286696,102000.0,101980.0,0.4546]
[1737427522079,0.039268,101990.0,101980.0,0.47915079]
[1737427522288,0.039268,101990.0,101980.0,0.51842279]
[1737427522482,0.039268,101990.0,101980.0,0.493872]
[1737427522979,0.039268,101990.0,101980.0,0.57673896]
[1737427523187,0.039264,102000.0,101980.0,0.67479259]
[1737427523584,0.039264,102000.0,101980.0,0.69934376]
[1737427523788,0.039264,102000.0,101990.0,0.3608]
[1737427525479,0.039264,102000.0,101990.0,0.400068]
[1737427526587,0.039264,102000.0,101990.0,0.3608]
[1737427526784,0.039264,102000.0,101980.0,0.493871]
[1737427526785,0.039268,101990.0,101980.0,0.493871]
[1737427527376,0.039268,101990.0,101980.0,0.51842207]
[1737427527584,0.039268,101990.0,101980.0,0.11835107]
[1737427527893,0.039268,101990.0,101980.0,0.47915107]
[1737427528283,0.039265,102000.0,101980.0,0.60128603]
[1737427528484,0.039265,102000.0,101990.0,0.3608]
[1737427528892,0.3798265,102010.0,101990.0,0.44366696]
[1737427528893,0.0582875,102010.0,101990.0,0.44366696]
[1737427529090,0.0582875,102010.0,102000.0,0.0892]
[1737427529389,0.039264,102000.0,101990.0,0.3608]
[1737427529983,0.03934915,102010.0,101990.0,0.54171098]
[1737427530184,0.03934915,102010.0,102000.0,0.490364]
[1737427530889,8.815e-05,102010.0,102000.0,0.490364]
[1737427531080,0.12221511,102010.0,102000.0,0.0903]
[1737427531288,0.12221511,102010.0,102000.0,0.3608]
[1737427531994,0.03934815,102010.0,102000.0,0.3608]
[1737427532404,0.03934815,102010.0,101990.0,0.48293496]
[1737427532600,0.03934815,102010.0,102000.0,0.3608]
[1737427532805,0.039267,102000.0,101980.0,0.677071]
[1737427533903,0.03934915,102010.0,102000.0,0.039264]
[1737427534106,8.815e-05,102010.0,102000.0,0.400064]
[1737427534301,8.815e-05,102010.0,102000.0,0.48293096]
[1737427535104,8.815e-05,102010.0,101990.0,0.400067]
[1737427535409,0.08295511,102010.0,101990.0,0.400067]
[1737427535713,0.08295511,102010.0,101990.0,0.3608]
[1737427535903,0.039264,102000.0,101990.0,0.3608]
[1737427536607,0.039264,102000.0,101990.0,0.400068]
[1737427536809,0.039264,102000.0,101990.0,0.48293496]
[1737427537106,0.03934915,102010.0,101990.0,0.58097898]
[1737427537311,0.03934915,102010.0,102000.0,0.3608]
[1737427537512,0.03934915,102010.0,102000.0,0.48293096]
[1737427537903,0.03934915,102010.0,102000.0,0.400064]
[1737427537904,0.15535553,102010.0,102000.0,0.400064]
[1737427539407,0.11609453,102010.0,102000.0,0.58096537]
[1737427539909,0.11609453,102010.0,102000.0,0.49809841]
[1737427540211,0.039264,102000.0,101990.0,0.37918859]
[1737427540606,0.039264,102000.0,101990.0,0.516491]
[1737427542807,0.00857966,102000.0,101990.0,0.516491]
[1737427543002,0.18422503,102000.0,101990.0,0.37918859]
[1737427543210,0.18422503,102000.0,101980.0,0.677071]
[1737427543505,0.18422503,102000.0,101990.0,0.3608]
[1737427543705,0.18422503,102000.0,101990.0,0.400068]
[1737427543919,0.21335872,102010.0,102000.0,0.039264]
[1737427544210,0.17409772,102010.0,102000.0,0.48293096]
[1737427544612,0.17409772,102010.0,102000.0,0.63174127]
[1737427544799,0.17409772,102010.0,102000.0,0.49811282]
[1737427544800,0.21335772,102010.0,102000.0,0.49811282]
[1737427545004,0.17409772,102010.0,102000.0,0.49811282]
[1737427545305,0.17409772,102010.0,102000.0,0.63181952]
[1737427546104,0.17409772,102010.0,102000.0,0.54895256]
[1737427546412,0.21335772,102010.0,102000.0,0.45090374]
[1737427546708,0.2416932,102010.0,102000.0,0.54893815]
[1737427546910,0.2024332,102010.0,102000.0,0.54893815]
[1737427547913,0.2024332,102010.0,102000.0,0.63180511]
[1737427548511,0.2024332,102010.0,102000.0,0.54893815]
[1737427549111,0.2024332,102010.0,102000.0,0.56593041]
[1737427549507,0.2024332,102010.0,102000.0,0.64879737]
[1737427549807,0.61205763,102030.0,102010.0,0.03926]
[1737427550008,0.61205763,102030.0,102020.0,0.94092396]
[1737427550214,0.61205763,102030.0,102020.0,0.9917637]
[1737427550516,1.16341887,102030.0,102020.0,1.08979811]
[1737427550703,1.1634956,102030.0,102020.0,1.08979811]
[1737427551812,1.1634956,102030.0,102020.0,1.00693115]
[1737427552018,1.2027486,102030.0,102020.0,0.90889674]
[1737427552508,1.28561556,102030.0,102020.0,0.41163974]
[1737427552714,1.38281556,102030.0,102010.0,0.3608]
[1737427553016,0.039257,102020.0,102010.0,0.41166003]
[1737427553203,0.12212396,102020.0,102010.0,0.41166003]
[1737427553408,0.48292396,102020.0,102010.0,0.05086003]
[1737427553608,0.48240719,102020.0,102000.0,0.41705626]
[1737427553815,0.39954023,102020.0,102000.0,0.41705626]
[1737427554517,0.39954023,102020.0,102000.0,0.51508106]
[1737427555411,0.03874023,102020.0,102000.0,0.51508106]
[1737427555616,0.03926,102010.0,102000.0,0.41705626]
[1737427555815,0.039258,102020.0,102000.0,0.49992322]
[1737427556009,0.25382307,102030.0,102020.0,0.039257]
[1737427556211,0.27061529,102030.0,102020.0,0.039257]
[1737427557116,0.11736907,102030.0,102020.0,0.48292396]
[1737427557508,7.673e-05,102030.0,102020.0,0.48292396]
[1737427557717,7.673e-05,102030.0,102020.0,0.400057]
[1737427558104,0.03932973,102030.0,102020.0,0.400057]
[1737427558510,0.12219669,102030.0,102010.0,0.3608]
[1737427558713,0.12219669,102030.0,102000.0,0.41705526]
[1737427558913,0.039258,102020.0,102000.0,0.46797798]
[1737427559213,0.03926,102010.0,102000.0,0.46797798]
[1737427559515,0.03926,102010.0,102000.0,0.41172272]
[1737427559714,0.039264,102000.0,101990.0,0.039267]
[1737427559922,0.039264,102000.0,101980.0,0.583671]
[1737427560122,0.039264,102000.0,101980.0,0.27381461]
[1737427560312,0.03938249,101990.0,101980.0,0.41174361]
[1737427560508,0.03938249,101990.0,101980.0,0.3608]
[1737427560713,0.48304945,101990.0,101960.0,0.83569382]
[1737427561015,0.039273,101980.0,101970.0,0.3608]
[1737427561611,0.039276,101970.0,101960.0,0.28982313]
[1737427561808,0.21874296,101970.0,101960.0,0.34419591]
[1737427562008,0.135876,101970.0,101960.0,0.34419591]
[1737427562520,0.135876,101970.0,101960.0,0.70499591]
[1737427563417,0.135876,101970.0,101960.0,0.34419591]
[1737427563930,0.135876,101970.0,101960.0,0.70499591]
[1737427564119,0.135876,101970.0,101960.0,0.34419591]
[1737427564322,0.135876,101970.0,101960.0,0.70499591]
[1737427566323,0.135876,101970.0,101960.0,0.34419591]
[1737427567123,0.15314887,101970.0,101960.0,0.34419591]
[1737427568115,0.15314887,101970.0,101960.0,0.70499591]
[1737427568316,0.25305569,101970.0,101960.0,0.36088331]
[1737427568510,0.15645569,101970.0,101960.0,0.44375027]
[1737427568710,0.11717969,101970.0,101960.0,0.36088331]
[1737427568916,0.11717969,101970.0,101960.0,0.03936331]
[1737427569128,0.11717969,101970.0,101960.0,0.40016331]
[1737427569316,0.11717969,101970.0,101960.0,8.331e-05]
[1737427569523,0.15645569,101970.0,101960.0,8.331e-05]
[1737427570321,0.23932265,101970.0,101960.0,8.331e-05]
[1737427570618,0.15645569,101970.0,101960.0,8.331e-05]
[1737427571028,0.039276,101970.0,101960.0,8.331e-05]
[1737427572221,0.039276,101970.0,101950.0,0.01713096]
[1737427572222,0.44377068,101970.0,101950.0,0.01713096]
[1737427572421,0.039284,101950.0,101930.0,0.40156243]
[1737427572623,0.039284,101950.0,101930.0,0.41865778]
[1737427572926,0.039284,101950.0,101930.0,0.54129187]
[1737427573125,0.135884,101950.0,101930.0,0.54129187]
[1737427574326,0.48304566,101940.0,101930.0,0.04312801]
[1737427574525,0.48304566,101940.0,101930.0,0.02456123]
[1737427574931,0.039295,101920.0,101900.0,0.64292878]
[1737427575230,0.12216196,101920.0,101900.0,0.75657526]
[1737427575523,0.48296596,101910.0,101900.0,0.28212878]
[1737427575720,0.57956596,101910.0,101900.0,0.28212878]
[1737427575912,0.57963755,101910.0,101900.0,0.28212878]
[1737427576320,0.57963755,101910.0,101890.0,0.29006325]
[1737427576620,0.66614159,101900.0,101890.0,0.29006325]
[1737427577119,0.58327463,101900.0,101890.0,0.29006325]
[1737427577325,0.66614159,101900.0,101890.0,0.29006325]
[1737427578426,0.58327463,101900.0,101890.0,0.29006325]
[1737427578633,0.66614159,101900.0,101890.0,0.29006325]
[1737427579021,0.58327463,101900.0,101890.0,0.29006325]
[1737427579230,0.49277463,101900.0,101890.0,0.29006325]
[1737427579430,0.53633859,101900.0,101880.0,0.3608]
[1737427579728,0.03931,101880.0,101870.0,0.46598818]
[1737427580121,0.44366696,101880.0,101860.0,0.3608943]
[1737427580426,0.039314,101870.0,101860.0,0.3608943]
[1737427581023,0.039311,101880.0,101860.0,0.3608943]
[1737427581430,0.12217796,101880.0,101860.0,0.3608943]
[1737427582224,0.039311,101880.0,101870.0,0.3608]
[1737427582927,0.039314,101870.0,101860.0,9.43e-05]
[1737427583830,0.12218096,101870.0,101860.0,9.43e-05]
[1737427584325,0.21688096,101870.0,101860.0,0.0308185]
[1737427585029,0.134014,101870.0,101860.0,9.43e-05]
[1737427585430,0.039314,101870.0,101860.0,0.02467736]
[1737427585828,0.12218096,101870.0,101860.0,0.02467736]
[1737427586035,0.039314,101870.0,101860.0,0.41620513]
[1737427587335,0.039314,101870.0,101860.0,0.38502334]
[1737427588128,0.039314,101870.0,101860.0,0.02422334]
[1737427588327,0.039314,101870.0,101850.0,0.58752]
[1737427588523,0.039314,101870.0,101850.0,0.67038696]
[1737427588728,0.17043626,101880.0,101850.0,0.28556914]
[1737427589028,0.039317,101870.0,101850.0,0.28556914]
[1737427589223,0.53123626,101880.0,101850.0,0.1874]
[1737427589426,0.53123626,101880.0,101840.0,0.4585]
[1737427589427,0.039322,101850.0,101840.0,0.4585]
[1737427590829,0.53376696,101870.0,101840.0,0.4585]
[1737427591027,0.400114,101870.0,101850.0,0.48298896]
[1737427591223,0.400114,101870.0,101850.0,0.585522]
[1737427591428,8.751e-05,101880.0,101860.0,0.44366696]
[1737427591736,8.751e-05,101880.0,101870.0,0.57358096]
[1737427591935,0.03939751,101880.0,101870.0,0.490714]
[1737427592928,0.03939751,101880.0,101870.0,0.58887832]
[1737427592929,0.26307019,101880.0,101870.0,0.58887832]
[1737427593433,0.26307019,101880.0,101870.0,0.5888735]
[1737427593924,0.30238019,101880.0,101870.0,0.490714]
[1737427594126,0.38524715,101880.0,101870.0,0.3608]
[1737427594932,0.039314,101870.0,101860.0,0.3608]
[1737427595130,0.039318,101860.0,101850.0,0.6368]
[1737427595534,0.08286696,101870.0,101850.0,0.276]
[1737427595832,0.039318,101860.0,101850.0,0.276]
[1737427596728,0.039318,101860.0,101850.0,0.6368]
[1737427597135,0.039318,101860.0,101850.0,0.276]
[1737427597335,0.039318,101860.0,101850.0,0.676122]
[1737427598032,0.039318,101860.0,101850.0,0.7007041]
[1737427598232,0.12218496,101860.0,101850.0,0.3005821]
[1737427598431,0.12230717,101860.0,101850.0,0.0245821]
[1737427600035,0.03944021,101860.0,101850.0,0.0639041]
[1737427600236,0.03944021,101860.0,101850.0,0.80408288]
[1737427600237,0.00012221,101860.0,101850.0,0.80408288]
[1737427601038,0.00012221,101860.0,101850.0,0.77950078]
[1737427601226,0.00012221,101860.0,101850.0,0.86236774]
[1737427601432,0.14580299,101880.0,101850.0,0.86236774]
[1737427601630,0.14580299,101880.0,101870.0,0.400114]
[1737427601827,0.26797995,101880.0,101860.0,0.039317]
[1737427602027,0.18511299,101880.0,101860.0,0.039317]
[1737427602337,0.22866995,101880.0,101860.0,0.039317]
[1737427602537,0.03941488,101870.0,101860.0,0.039317]
[1737427603635,0.00010088,101870.0,101860.0,0.400117]
[1737427603942,0.14580299,101880.0,101860.0,0.5811531]
[1737427604142,0.14580299,101880.0,101870.0,0.48298096]
[1737427604438,0.32190478,101880.0,101870.0,0.48298096]
[1737427604639,0.32190478,101880.0,101870.0,0.400114]
[1737427604828,0.32190478,101880.0,101870.0,0.49828314]
[1737427605029,0.32199118,101880.0,101870.0,0.49828314]
[1737427605729,0.29127134,101880.0,101870.0,0.49828314]
[1737427606829,0.29127134,101880.0,101870.0,0.5811501]
[1737427607035,0.00147286,101910.0,101900.0,0.039302]
[1737427607235,0.20506446,101920.0,101910.0,0.039299]
[1737427607436,0.24435946,101920.0,101900.0,0.400102]
[1737427607642,0.039301,101910.0,101890.0,0.590306]
[1737427607842,0.43942385,101900.0,101890.0,0.60180339]
[1737427608040,0.47884833,101900.0,101890.0,0.3608]
[1737427608244,0.56171529,101900.0,101890.0,0.3608]
[1737427608439,0.47884833,101900.0,101890.0,0.3608]
[1737427609442,0.43954633,101900.0,101890.0,0.400106]
[1737427609640,0.43954633,101900.0,101890.0,0.45102952]
[1737427609847,0.56171529,101900.0,101890.0,0.3608]
[1737427610332,0.47884833,101900.0,101890.0,0.3608]
[1737427610739,0.47884833,101900.0,101890.0,0.400106]
[1737427611147,0.43954633,101900.0,101890.0,0.400106]
[1737427611342,0.43954633,101900.0,101890.0,0.5811132]
[1737427612040,0.00012248,101900.0,101890.0,0.5811132]
[1737427612241,0.00012248,101900.0,101890.0,0.73044438]
[1737427613243,4.6e-07,101910.0,101900.0,0.039302]
[1737427613440,0.11371812,101930.0,101920.0,0.039295]
[1737427613641,0.11371812,101930.0,101920.0,0.89469314]
[1737427613840,0.11371812,101930.0,101920.0,0.99283338]
[1737427614142,0.11371812,101930.0,101920.0,0.90996642]
[1737427614645,0.11371812,101930.0,101920.0,0.85903524]
[1737427614848,0.15301212,101930.0,101910.0,0.4001916]
[1737427615035,0.039295,101920.0,101910.0,0.0393916]
[1737427615243,0.039295,101920.0,101910.0,0.13750295]
[1737427615645,0.1976,101930.0,101910.0,0.49830295]
[1737427616148,0.495285,101950.0,101930.0,0.03929]
[1737427616450,0.134485,101950.0,101930.0,0.12215696]
[1737427616751,0.227385,101950.0,101930.0,0.03929]
[1737427618348,0.227385,101950.0,101940.0,0.12215396]
[1737427618652,0.227385,101950.0,101930.0,0.400089]
[1737427619051,0.227385,101950.0,101940.0,0.039287]
[1737427620246,0.31025196,101950.0,101930.0,0.40009]
[1737427620443,0.227385,101950.0,101930.0,0.40009]
[1737427621346,0.039287,101940.0,101930.0,0.40009]
[1737427621753,0.227383,101950.0,101930.0,0.40009]
[1737427622053,0.0952,101950.0,101940.0,0.48295396]
[1737427622249,0.0986,101960.0,101940.0,0.48295396]
[1737427622449,0.18987231,101970.0,101960.0,0.039279]
[1737427622651,0.22914731,101970.0,101950.0,0.48294996]
[1737427622847,0.18987231,101970.0,101960.0,0.3608]
[1737427623053,0.18987231,101970.0,101960.0,0.400079]
[1737427623353,0.27273927,101970.0,101950.0,0.09807767]
[1737427623654,0.03928,101960.0,101940.0,0.400085]
[1737427623954,0.039283,101950.0,101940.0,0.039285]
[1737427624253,0.133183,101950.0,101930.0,0.4015615]
[1737427624454,0.091,101940.0,101930.0,0.4015615]
[1737427624656,0.091,101940.0,101930.0,0.58251575]
[1737427624965,0.09887231,101970.0,101940.0,0.039287]
[1737427625146,0.19497231,101970.0,101960.0,0.48294596]
[1737427626156,0.0909,101980.0,101960.0,0.66388578]
[1737427626361,0.0961,101990.0,101980.0,0.039272]
[1737427626553,0.0961,101990.0,101980.0,0.48293896]
[1737427626755,0.1909,102000.0,101990.0,0.039268]
[1737427627057,0.1,102000.0,101990.0,0.48293496]
[1737427627557,0.1,102000.0,101990.0,0.58098859]
[1737427628342,0.1,102000.0,101990.0,0.49812163]
[1737427628759,0.1,102000.0,101990.0,0.400068]
[1737427628958,0.1978,102000.0,101990.0,0.400068]
[1737427629258,0.237064,102000.0,101990.0,0.3608]
[1737427629445,0.336864,102000.0,101990.0,0.3608]
[1737427629649,0.697664,102000.0,101980.0,0.40019365]
[1737427629847,0.133068,101990.0,101980.0,0.36092265]
[1737427630059,0.0938,101990.0,101980.0,0.44378961]
[1737427630356,0.0938,101990.0,101980.0,0.40019465]
[1737427630747,0.0938,101990.0,101980.0,0.03939465]
[1737427631840,0.21593496,101990.0,101980.0,0.00012265]
[1737427632358,0.039275,101970.0,101960.0,0.00147104]
[1737427632561,0.12214196,101970.0,101960.0,0.00147104]
[1737427632749,0.039279,101960.0,101940.0,0.400084]
[1737427633054,0.21644596,101960.0,101940.0,0.13735686]
[1737427633353,0.03939403,101950.0,101930.0,0.57383823]
[1737427633858,0.08297799,101950.0,101930.0,0.63262109]
[1737427634157,0.12215396,101940.0,101930.0,0.53454823]
[1737427634451,0.48295396,101940.0,101930.0,0.17374823]
[1737427634757,0.12215396,101940.0,101930.0,0.17374823]
[1737427635349,0.57925396,101940.0,101930.0,0.17374823]
[1737427635855,0.62482002,101940.0,101930.0,0.02124823]
[1737427636060,0.039295,101920.0,101910.0,0.3608]
[1737427636755,0.039295,101920.0,101900.0,0.400102]
[1737427637055,0.039295,101920.0,101900.0,0.49820373]
[1737427637254,0.039295,101920.0,101910.0,0.3608]
[1737427638065,0.492691,101930.0,101910.0,0.400097]
[1737427638252,0.492691,101930.0,101910.0,0.49821798]
[1737427639252,0.0926,101930.0,101920.0,0.400095]
[1737427639459,0.131891,101930.0,101920.0,0.400095]
[1737427639656,0.131891,101930.0,101920.0,0.039295]
[1737427641059,0.00011103,101950.0,101940.0,0.039287]
[1737427641358,0.00011103,101950.0,101940.0,0.400087]
[1737427641662,0.00011103,101950.0,101940.0,0.49819835]
[1737427642056,0.00011103,101950.0,101940.0,0.45891135]
[1737427642358,0.03939403,101950.0,101940.0,0.3608]
[1737427642565,0.039287,101940.0,101930.0,0.3608]
[1737427643056,0.09551103,101950.0,101930.0,0.58732512]
[1737427643264,0.00011103,101950.0,101940.0,0.52852002]
[1737427643459,0.00011103,101950.0,101940.0,0.62332002]
[1737427643668,0.00011103,101950.0,101940.0,0.494887]
[1737427643856,0.00011103,101950.0,101940.0,0.59298873]
[1737427644158,0.00011103,101950.0,101940.0,0.72142175]
[1737427644365,0.14601923,101960.0,101950.0,0.16771602]
[1737427644559,0.14601923,101960.0,101950.0,0.494883]
[1737427645063,0.14601923,101960.0,101950.0,0.5929751]
[1737427645260,0.14601923,101960.0,101950.0,0.72140812]
[1737427645261,0.14610671,101960.0,101950.0,0.72140812]
[1737427645456,0.17522307,101970.0,101960.0,0.039279]
[1737427645457,0.16874338,101970.0,101960.0,0.039279]
[1737427645650,0.20442692,101980.0,101970.0,0.039275]
[1737427645955,0.20442692,101980.0,101970.0,0.52850802]
[1737427646161,0.07542692,101980.0,101970.0,0.9265905]
[1737427646357,0.07542692,101980.0,101970.0,0.6265905]
[1737427646561,0.07542692,101980.0,101970.0,0.62670275]
[1737427648163,0.07542692,101980.0,101970.0,0.51158683]
[1737427648467,0.139265,102000.0,101980.0,0.039271]
[1737427648662,0.139265,102000.0,101980.0,0.400071]
[1737427649052,0.0932,101990.0,101980.0,0.400071]
[1737427650062,0.132468,101990.0,101970.0,0.40018725]
[1737427650261,0.189,101980.0,101970.0,0.40018725]
[1737427650461,0.189,101980.0,101970.0,0.49824088]
[1737427650764,0.228272,101980.0,101970.0,0.36091225]
[1737427651268,0.228272,101980.0,101970.0,0.00011225]
[1737427652365,0.189,101980.0,101970.0,0.62668352]
[1737427652572,0.0932,101990.0,101970.0,0.62668352]
[1737427652869,0.1861,101990.0,101980.0,0.400072]
[1737427653073,0.0929,101990.0,101980.0,0.52850502]
[1737427653262,0.0929,101990.0,101980.0,0.400072]
[1737427653459,0.0929,101990.0,101980.0,0.49813044]
[1737427653976,0.132168,101990.0,101980.0,0.039272]
[1737427654671,0.132168,101990.0,101980.0,0.400072]
[1737427654968,0.132168,101990.0,101980.0,0.3608]
[1737427655772,0.0929,101990.0,101980.0,0.400072]
[1737427657072,0.1986,102000.0,101990.0,0.039268]
[1737427657266,0.1986,102000.0,101990.0,0.52850102]
[1737427657772,0.1,102000.0,101990.0,0.62655465]
[1737427659466,0.1933,102030.0,102020.0,0.039256]
[1737427659665,0.1933,102030.0,102020.0,0.400056]
[1737427659874,0.0963,102040.0,102020.0,0.400056]
[1737427660074,0.0963,102040.0,102030.0,0.52848502]
[1737427660581,0.68976538,102050.0,102040.0,0.039249]
[1737427660766,0.78606538,102050.0,102040.0,0.400049]
[1737427660966,0.49646538,102050.0,102040.0,0.52848202]
[1737427661174,0.49646538,102050.0,102040.0,0.626478]
[1737427661367,0.49646538,102050.0,102040.0,0.926478]
[1737427661565,0.48858868,102050.0,102040.0,0.926478]
[1737427661773,0.0963,102070.0,102060.0,0.039241]
[1737427661975,0.0963,102070.0,102060.0,0.760841]
[1737427662271,0.0963,102070.0,102060.0,0.400041]
[1737427662580,0.0963,102070.0,102060.0,0.49801777]
[1737427663072,0.51224407,102090.0,102070.0,0.039235]
[1737427663273,0.51224407,102090.0,102080.0,0.7216]
[1737427663476,0.51224407,102090.0,102070.0,0.3608]
[1737427663674,0.039233,102080.0,102070.0,0.3608]
[1737427664074,0.039233,102080.0,102060.0,0.3608]
[1737427664581,0.039233,102080.0,102060.0,0.45876718]
[1737427664778,0.039237,102070.0,102060.0,0.09796718]
[1737427665074,0.039234,102080.0,102060.0,0.3608]
[1737427665279,0.039234,102080.0,102050.0,0.54182317]
[1737427665476,0.659,102090.0,102060.0,0.039241]
[1737427665663,0.698231,102090.0,102060.0,0.26565079]
[1737427665864,0.698231,102090.0,102070.0,0.3608]
[1737427666071,0.337431,102090.0,102070.0,0.3608]
[1737427666272,0.698231,102090.0,102070.0,0.3608]
[1737427666471,0.337431,102090.0,102070.0,0.400037]
[1737427666673,0.337431,102090.0,102070.0,0.49800418]
[1737427667071,0.2982,102090.0,102070.0,0.49800418]
[1737427667275,0.2982,102090.0,102070.0,0.5872002]
[1737427667777,0.2982,102090.0,102070.0,0.6264372]
[1737427668173,0.1977,102090.0,102070.0,0.5872002]
[1737427668375,0.1977,102090.0,102080.0,0.400033]
[1737427668677,0.1,102100.0,102090.0,0.03923]
[1737427668876,0.1,102100.0,102090.0,0.3608]
[1737427669075,0.1,102100.0,102080.0,0.49799538]
[1737427669276,0.1,102100.0,102080.0,0.400033]
[1737427669479,0.1,102100.0,102090.0,0.3608]
[1737427669679,0.1,102100.0,102090.0,0.52846302]
[1737427670190,0.1,102100.0,102090.0,0.626411]
[1737427670688,0.1,102100.0,102090.0,0.49797798]
[1737427671383,0.1,102100.0,102090.0,0.45874798]
[1737427671571,0.234526,102100.0,102090.0,0.3608]
[1737427671984,0.234526,102100.0,102080.0,0.37410995]
[1737427672281,0.5561,102100.0,102080.0,0.09794798]
[1737427672482,0.039232,102090.0,102080.0,0.09794798]
[1737427672678,0.039232,102090.0,102070.0,0.3608]
[1737427672885,0.1899,102080.0,102070.0,0.3608]
[1737427673078,0.1899,102080.0,102070.0,0.45874798]
[1737427673279,0.1899,102080.0,102070.0,0.3608]
[1737427673673,0.039237,102070.0,102060.0,0.00146954]
[1737427673879,0.500037,102070.0,102060.0,0.00146954]
[1737427674079,0.4608,102070.0,102040.0,0.91641064]
[1737427674278,0.400043,102060.0,102040.0,0.91641064]
[1737427674587,0.0928,102050.0,102040.0,0.68962962]
[1737427674783,0.132045,102050.0,102040.0,0.23085285]
[1737427677281,0.44466106,102050.0,102040.0,0.00010064]
[1737427677481,0.039249,102040.0,102030.0,0.00147006]
[1737427677681,0.3608,102060.0,102030.0,0.36227006]
[1737427677894,0.400042,102060.0,102040.0,0.039247]
[1737427678388,0.0001024,102050.0,102040.0,0.039247]
[1737427678693,0.0393474,102050.0,102040.0,0.039247]
[1737427679794,0.0001024,102050.0,102040.0,0.039247]
[1737427680293,0.400041,102060.0,102040.0,0.039247]
[1737427680594,0.039247,102050.0,102030.0,0.04072206]
[1737427680792,0.591542,102060.0,102040.0,0.039248]
[1737427681193,0.039247,102050.0,102030.0,0.04072206]
[1737427681688,0.500749,102040.0,102030.0,0.00147006]
[1737427681896,0.500749,102040.0,102020.0,0.039256]
[1737427682092,0.0937,102030.0,102020.0,0.039256]
[1737427682291,0.0937,102030.0,102010.0,0.36089317]
[1737427682485,0.039256,102020.0,102010.0,0.40015317]
[1737427682886,0.132953,102030.0,102010.0,0.03935317]
[1737427683187,0.039256,102020.0,102010.0,0.03935317]
[1737427683392,0.039256,102020.0,102010.0,9.317e-05]
[1737427683693,0.039256,102020.0,102010.0,0.03935317]
[1737427683991,0.0937,102030.0,102020.0,0.039256]
[1737427684197,0.0937,102030.0,102020.0,0.52848902]
[1737427684585,0.0937,102030.0,102020.0,0.62651382]
[1737427685196,0.0937,102030.0,102020.0,0.4980808]
[1737427685699,0.1007,102040.0,102030.0,0.039253]
[1737427686396,0.3608,102070.0,102030.0,0.6264916]
[1737427686696,0.0976,102070.0,102060.0,0.400041]
[1737427686892,0.11632252,102080.0,102070.0,0.039237]
[1737427687086,0.15555552,102080.0,102060.0,0.03924]
[1737427687293,0.039237,102070.0,102050.0,0.400044]
[1737427687493,0.0976,102060.0,102050.0,0.400044]
[1737427687698,0.0976,102060.0,102050.0,0.49801118]
[1737427688097,0.0976,102060.0,102040.0,0.36226976]
[1737427688294,0.0976,102060.0,102050.0,0.400045]
[1737427688496,0.094,102070.0,102060.0,0.039241]
[1737427688698,0.094,102070.0,102060.0,0.52847402]
[1737427688892,0.21392252,102080.0,102060.0,0.48923302]
[1737427689090,0.0976,102080.0,102070.0,0.039237]
[1737427689304,0.0976,102080.0,102070.0,0.52847002]
[1737427689697,0.0976,102080.0,102070.0,0.49800898]
[1737427689904,0.497633,102080.0,102060.0,0.039241]
[1737427690103,0.039239,102070.0,102050.0,0.400044]
[1737427690296,0.136239,102070.0,102050.0,0.400044]
[1737427690606,0.497039,102070.0,102050.0,0.49801598]
[1737427691005,0.136239,102070.0,102050.0,0.49801598]
[1737427691702,0.097,102070.0,102060.0,0.400041]
[1737427691902,0.097,102070.0,102060.0,0.52847402]
[1737427692293,0.097,102070.0,102060.0,0.62645079]
[1737427692500,0.4584,102080.0,102060.0,0.58720979]
[1737427692695,0.4584,102080.0,102070.0,0.039237]
[1737427692902,0.0976,102080.0,102060.0,0.45877677]
[1737427693110,0.0976,102080.0,102060.0,0.40004]
[1737427693409,0.0976,102080.0,102060.0,0.49801198]
[1737427694205,0.0976,102080.0,102070.0,0.039237]
[1737427694407,0.0976,102080.0,102070.0,0.400037]
[1737427694714,0.21702252,102090.0,102080.0,0.039233]
[1737427694904,0.11632252,102090.0,102080.0,0.400033]
[1737427695305,0.11632252,102090.0,102080.0,0.49799058]
[1737427696310,0.11740194,102100.0,102090.0,0.03923]
[1737427696510,0.11528494,102100.0,102090.0,0.52846302]
[1737427696807,0.11528494,102100.0,102090.0,0.67324884]
[1737427697010,0.11528494,102100.0,102090.0,0.86430642]
[1737427697208,0.11528494,102100.0,102090.0,0.77120642]
[1737427697414,0.11528494,102100.0,102090.0,0.7207206]
[1737427697804,0.11528494,102100.0,102090.0,0.77113244]
[1737427698004,0.11528494,102100.0,102090.0,0.13718758]
[1737427698200,0.11528494,102100.0,102090.0,0.05230714]
[1737427698408,0.11528494,102100.0,102090.0,0.41310714]
[1737427698715,0.11528494,102100.0,102090.0,0.05230714]
[1737427699410,0.17105614,102100.0,102090.0,0.05230714]
[1737427700114,0.07615614,102100.0,102090.0,0.59406648]
[1737427700607,0.07615614,102100.0,102090.0,0.69136648]
[1737427701216,0.07615614,102100.0,102090.0,0.41310714]
[1737427701414,0.43695614,102100.0,102090.0,0.01307714]
[1737427701617,0.43695614,102100.0,102090.0,0.03923]
[1737427701918,0.56858214,102100.0,102080.0,0.40013331]
[1737427702214,0.13823,102090.0,102080.0,0.36090031]
[1737427702410,0.13823,102090.0,102080.0,0.37324564]
[1737427702808,0.23573,102090.0,102080.0,0.37324564]
[1737427703003,0.1965,102090.0,102080.0,0.59344278]
[1737427703208,0.099,102090.0,102080.0,0.59344278]
[1737427703616,0.099,102090.0,102080.0,0.37324564]
[1737427703818,0.1916,102090.0,102080.0,0.37324564]
[1737427704207,0.1916,102090.0,102080.0,0.41247864]
[1737427708317,0.099,102090.0,102080.0,0.41247864]
[1737427708616,0.099,102090.0,102080.0,0.63845634]
[1737427711211,0.099,102090.0,102080.0,0.51043622]
[1737427711615,0.099,102090.0,102080.0,0.41247864]
[1737427711817,0.13823,102090.0,102080.0,0.01244564]
[1737427712024,0.49903,102090.0,102080.0,0.00010031]
[1737427712219,0.49903,102090.0,102070.0,0.400037]
[1737427712419,0.0952,102080.0,102070.0,0.400037]